bitfinex-derivatives/quotes_SOLF0:USTF0_20251223
["timestamp","ask_amount","ask_price","bid_price","bid_amount"]
[1766524016283,6.33,124.08,124.01,0.33]
[1766524017074,6.33,124.08,124.02,7.2603]
[1766524017280,0.0562352,124.06,124.04,0.06031423]
[1766524017479,8.60680454,124.1,124.04,0.06031423]
[1766524017676,6.33,124.1,124.04,7.31951423]
[1766524018585,0.05743217,124.08,124.04,7.31951423]
[1766524019171,6.33,124.1,124.04,7.31951423]
[1766524019878,6.33,124.1,124.05,7.2586]
[1766524020071,0.05826308,124.09,124.04,0.06031423]
[1766524020276,6.38826308,124.09,124.04,0.06031423]
[1766524022390,0.05826308,124.09,124.04,7.60951423]
[1766524023079,6.25826308,124.09,124.04,0.06031423]
[1766524028090,6.25826308,124.09,124.04,7.31931423]
[1766524030691,6.25826308,124.09,124.04,0.06031423]
[1766524030893,6.2,124.08,124.04,0.00031423]
[1766524031898,6.2,124.04,123.98,95.22]
[1766524032394,6.2,124.04,123.99,7.262]
[1766524032785,0.05919308,124.03,124.0,0.06166031]
[1766524034200,0.05919308,124.03,124.0,7.32306031]
[1766524035602,0.05919308,124.03,124.0,0.06166031]
[1766524041408,6.25919308,124.03,124.0,0.00166031]
[1766524048316,112.8728,124.1,124.0,0.00166031]
[1766524048317,1.45705937,124.08,124.0,6.37166031]
[1766524048517,1.45705937,124.08,124.0,6.37]
[1766524049318,0.05197411,124.05,124.03,0.05829801]
[1766524049919,0.05197411,124.05,124.0,6.37]
[1766524050313,6.25197411,124.05,124.0,6.37]
[1766524050722,0.05197411,124.05,124.02,6.37]
[1766524050908,0.05197411,124.05,123.99,114.41935937]
[1766524051223,0.05197411,124.05,124.02,0.05611745]
[1766524053425,0.05197411,124.05,124.02,7.31651745]
[1766524057424,0.05197411,124.05,124.02,0.05611745]
[1766524057831,6.68197411,124.05,124.02,0.05611745]
[1766524058930,6.68197411,124.05,123.98,6.65]
[1766524059234,6.63,124.05,123.99,95.24]
[1766524059428,8.08705937,124.09,124.0,6.65]
[1766524059636,8.08705937,124.09,124.0,8.10705937]
[1766524060131,6.68474311,124.06,124.0,8.10705937]
[1766524060531,6.68474311,124.06,124.01,7.2608]
[1766524061036,6.68474311,124.06,124.0,8.10705937]
[1766524061237,6.68474311,124.06,124.02,0.0544313]
[1766524065043,6.68474311,124.06,124.02,0.0044313]
[1766524065245,6.63,124.04,124.02,0.0044313]
[1766524071952,8.08705937,124.03,123.94,6.65]
[1766524072148,8.08705937,124.03,123.94,101.89]
[1766524072954,0.06027393,124.0,123.97,0.05628337]
[1766524074350,6.69027393,124.0,123.97,0.05628337]
[1766524076357,0.06027393,124.0,123.97,0.05628337]
[1766524082364,6.62027393,124.0,123.95,95.26]
[1766524082964,0.06027393,124.0,123.95,108.6843]
[1766524083364,0.06027393,124.0,123.96,0.03854607]
[1766524085067,0.06027393,124.0,123.96,6.19854607]
[1766524086569,0.06027393,124.0,123.97,7.2634]
[1766524087471,6.56,124.04,123.98,13.4227]
[1766524088470,0.0510967,124.02,124.0,0.05205964]
[1766524092667,6.6110967,124.02,124.0,0.00205964]
[1766524093865,13.8715967,124.02,124.0,0.00205964]
[1766524094069,6.56,124.01,124.0,0.00205964]
[1766524097960,0.0510967,124.02,124.0,0.00205964]
[1766524098366,0.0010967,124.02,124.0,1.45911901]
[1766524098564,6.5610967,124.02,124.0,0.00205964]
[1766524098764,0.0010967,124.02,124.0,0.00205964]
[1766524100564,6.5610967,124.02,124.0,0.00205964]
[1766524101468,0.0010967,124.02,124.0,0.00205964]
[1766524104880,6.56,124.01,124.0,0.00205964]
[1766524107676,6.56,124.01,123.95,6.16]
[1766524108688,0.05422265,123.99,123.97,0.05415466]
[1766524112175,0.05422265,123.99,123.97,0.00415466]
[1766524114687,7.31652265,123.99,123.97,0.00415466]
[1766524114874,13.59652265,123.99,123.97,0.00415466]
[1766524117389,6.33422265,123.99,123.97,0.00415466]
[1766524118194,6.33422265,123.99,123.92,6.22]
[1766524118496,6.28,123.98,123.92,6.22]
[1766524119095,0.05452242,123.96,123.94,0.0426057]
[1766524122596,0.00452242,123.96,123.94,0.0426057]
[1766524123184,0.00452242,123.96,123.94,0.0026057]
[1766524123385,0.00452242,123.96,123.89,6.22]
[1766524123386,6.28,123.95,123.89,6.22]
[1766524123900,208.2319,123.99,123.89,6.22]
[1766524123901,6.28,123.99,123.89,6.22]
[1766524124093,6.28,123.99,123.91,6.22]
[1766524124292,0.05303328,123.96,123.94,0.05]
[1766524124491,6.28,123.99,123.94,6.27]
[1766524124788,6.28,124.03,123.94,6.27]
[1766524124983,13.5412,124.01,123.94,6.22]
[1766524125185,6.28,124.0,123.94,6.22]
[1766524125597,0.05915933,123.98,123.96,0.05267932]
[1766524125997,0.05915933,123.98,123.96,0.00267932]
[1766524128301,6.33915933,123.98,123.96,0.00267932]
[1766524137585,2.33719605,123.98,123.9,7.2671]
[1766524137791,6.28,123.95,123.89,6.22]
[1766524138189,6.28,123.95,123.86,114.48634672]
[1766524138386,6.28,123.95,123.88,6.22]
[1766524138601,0.05940513,123.93,123.9,0.05035396]
[1766524141102,0.05940513,123.93,123.9,6.94035396]
[1766524141298,6.69,123.97,123.9,6.94035396]
[1766524141606,6.69,123.98,123.92,6.89]
[1766524141898,6.69,123.98,123.88,113.0658]
[1766524142098,6.69,123.98,123.89,6.89]
[1766524142309,0.06160002,123.94,123.92,0.00493243]
[1766524142604,6.69,123.95,123.92,0.00493243]
[1766524143300,6.74635748,123.95,123.92,0.00493243]
[1766524143602,0.05635748,123.95,123.92,0.00493243]
[1766524148104,6.74635748,123.95,123.92,0.00493243]
[1766524154310,14.01095748,123.95,123.92,0.00493243]
[1766524154511,6.69,123.94,123.92,0.00493243]
[1766524159418,13.9552,123.94,123.92,0.00493243]
[1766524160720,6.69,123.93,123.92,0.00493243]
[1766524160913,13.9562,123.93,123.87,6.89]
[1766524161923,0.0533294,123.91,123.89,0.0564648]
[1766524169038,0.0033294,123.91,123.89,0.0564648]
[1766524171831,6.69,123.94,123.89,6.4464648]
[1766524172025,1.45932815,123.97,123.89,6.4464648]
[1766524172329,102.12,123.98,123.91,6.39]
[1766524172931,6.8,123.98,123.93,6.44863372]
[1766524173326,1.45932815,123.99,123.93,6.44863372]
[1766524173522,8.25932815,123.99,123.93,6.44863372]
[1766524173729,7.2628,123.98,123.93,6.44863372]
[1766524174030,0.05964782,123.97,123.93,6.44863372]
[1766524179634,7.2627,123.99,123.93,6.44863372]
[1766524180738,0.06159266,123.97,123.93,6.44863372]
[1766524181238,1.45932815,124.0,123.94,6.43]
[1766524181837,7.99932815,124.0,123.94,6.43]
[1766524182339,0.05285812,123.98,123.96,0.05888398]
[1766524183144,1.51218627,123.98,123.94,6.43]
[1766524184344,1.51218627,123.98,123.95,0.05296943]
[1766524186243,8.05218627,123.98,123.95,0.05296943]
[1766524186545,8.05218627,123.98,123.9,6.43]
[1766524186546,7.99932815,123.96,123.9,6.43]
[1766524187143,1.45932815,123.98,123.91,6.43]
[1766524187144,6.54,123.98,123.91,6.43]
[1766524187332,0.05909363,123.96,123.93,0.05573093]
[1766524187642,0.05909363,123.96,123.93,6.48573093]
[1766524190246,0.05909363,123.96,123.93,0.05573093]
[1766524198558,0.05909363,123.96,123.93,13.75133093]
[1766524200853,6.47,124.0,123.95,6.89]
[1766524201461,7.92932815,123.99,123.93,6.89]
[1766524201852,0.05500868,123.97,123.95,0.05569007]
[1766524207965,7.2619,124.0,123.95,0.05569007]
[1766524208162,13.7319,124.0,123.95,0.05569007]
[1766524208652,6.47,123.99,123.95,0.05569007]
[1766524208852,0.05635267,123.98,123.95,0.05569007]
[1766524210266,6.52635267,123.98,123.95,0.05569007]
[1766524213963,6.52635267,123.98,123.9,95.3]
[1766524213964,1.45932815,123.97,123.9,95.3]
[1766524214163,6.47,123.96,123.91,7.2664]
[1766524214969,0.05347448,123.95,123.92,0.0512751]
[1766524215165,0.00347448,123.95,123.92,6.9412751]
[1766524215367,6.47,124.0,123.93,6.89]
[1766524215773,6.47,124.0,123.95,6.89]
[1766524216372,1.45932815,124.01,123.96,0.05461337]
[1766524216373,6.52335029,123.99,123.96,0.05461337]
[1766524216572,7.98267844,123.99,123.96,0.05461337]
[1766524216765,7.98267844,123.99,123.93,6.89]
[1766524216966,7.98267844,123.99,123.92,7.2659]
[1766524217860,7.92932815,123.97,123.94,0.05987171]
[1766524218066,7.98297942,123.97,123.91,6.89]
[1766524218262,7.98297942,123.97,123.9,102.5672]
[1766524218468,7.98297942,123.97,123.9,109.4572]
[1766524218961,7.98297942,123.97,123.92,0.05215544]
[1766524220373,7.98297942,123.97,123.92,6.94215544]
[1766524220572,7.98297942,123.97,123.92,14.20825544]
[1766524221469,7.98297942,123.97,123.93,7.2655]
[1766524221470,1.51297942,123.97,123.93,7.2655]
[1766524221672,0.05365127,123.97,123.93,7.2655]
[1766524222164,0.05365127,123.97,123.93,14.1555]
[1766524222370,0.05365127,123.97,123.93,6.89]
[1766524239793,7.2622,124.0,123.93,6.89]
[1766524239993,8.9690655,124.02,123.93,6.89]
[1766524240685,0.05583342,123.99,123.96,6.34244089]
[1766524242597,6.69,124.02,123.96,6.34244089]
[1766524243693,0.06169839,124.0,123.96,6.34244089]
[1766524249499,7.32349839,124.0,123.96,6.34244089]
[1766524255504,0.06169839,124.0,123.96,6.34244089]
[1766524256506,0.06169839,124.0,123.96,0.05244089]
[1766524256507,14.01339839,124.0,123.96,0.05244089]
[1766524256707,6.75169839,124.0,123.96,0.05244089]
[1766524257707,7.2623,123.99,123.96,0.05244089]
[1766524258208,6.75169839,124.0,123.96,0.05244089]
[1766524259607,14.01339839,124.0,123.96,0.05244089]
[1766524259798,7.32339839,124.0,123.96,6.34244089]
[1766524260209,0.06169839,124.0,123.96,6.34244089]
[1766524261107,0.00169839,124.0,123.97,6.37]
[1766524262400,0.00169839,124.0,123.96,0.05244089]
[1766524264207,0.00169839,124.0,123.96,6.42244089]
[1766524285439,6.42,124.05,123.97,6.37]
[1766524285737,2.2790655,124.06,123.99,6.37]
[1766524286133,13.6781,124.07,124.0,6.37]
[1766524286532,0.05981292,124.05,124.02,6.42099974]
[1766524286728,2.2790655,124.08,124.02,6.42099974]
[1766524287426,9.5360655,124.08,124.02,6.42099974]
[1766524287628,7.257,124.08,124.02,6.42099974]
[1766524287837,0.05752429,124.06,124.02,6.42099974]
[1766524288226,2.26872956,124.09,124.02,6.42099974]
[1766524288430,2.2790655,124.12,124.04,6.37]
[1766524289339,2.2790655,124.12,124.07,0.06114644]
[1766524289542,9.5340655,124.12,124.07,0.06114644]
[1766524289730,6.42,124.11,124.07,0.06114644]
[1766524289936,8.6990655,124.1,124.04,6.26]
[1766524291040,0.05153257,124.08,124.06,0.05115495]
[1766524292039,1.50769303,124.08,124.06,0.05115495]
[1766524294739,0.05153257,124.08,124.06,0.05115495]
[1766524301846,1.50769303,124.08,124.06,0.05115495]
[1766524302152,1.50769303,124.08,124.04,6.26]
[1766524302938,1.50769303,124.08,124.05,0.06051195]
[1766524303749,0.05153257,124.08,124.05,0.06051195]
[1766524304747,0.05153257,124.08,124.05,5.34051195]
[1766524304954,1.45616046,124.1,124.05,5.34051195]
[1766524306060,0.05674019,124.09,124.05,5.34051195]
[1766524307254,0.05674019,124.09,124.05,0.06051195]
[1766524307659,1.45616046,124.08,124.05,0.06051195]
[1766524308259,0.05674019,124.09,124.05,0.06051195]
[1766524308651,7.31324019,124.09,124.05,0.06051195]
[1766524310645,0.05674019,124.09,124.05,0.06051195]
[1766524319259,0.05674019,124.09,124.05,4.63051195]
[1766524320260,13.3351,124.12,124.05,4.63051195]
[1766524320261,13.3338,124.14,124.06,4.52]
[1766524320468,13.3338,124.14,124.08,4.52]
[1766524320858,14.79036046,124.13,124.06,4.44]
[1766524321166,14.79036046,124.13,124.06,99.64]
[1766524321360,0.06105401,124.11,124.08,0.05325234]
[1766524322465,7.04721447,124.11,124.08,0.05325234]
[1766524322866,0.06105401,124.11,124.08,0.05325234]
[1766524323460,0.06105401,124.11,124.08,4.40325234]
[1766524323763,7.04721447,124.11,124.08,0.00325234]
[1766524324468,5.59105401,124.11,124.08,0.00325234]
[1766524325869,0.06105401,124.11,124.08,0.00325234]
[1766524333471,5.59105401,124.11,124.08,0.00325234]
[1766524336480,6.98616046,124.09,124.04,3.91]
[1766524337178,5.53,124.09,124.04,3.91]
[1766524337481,0.05263531,124.08,124.05,0.05432087]
[1766524341284,6.98616046,124.11,124.05,3.78432087]
[1766524342185,0.06034959,124.09,124.05,3.78432087]
[1766524346186,5.59034959,124.09,124.05,0.05432087]
[1766524346387,7.04651005,124.09,124.05,0.05432087]
[1766524348294,5.59034959,124.09,124.05,0.05432087]
[1766524348491,5.53,124.08,124.05,0.05432087]
[1766524350799,12.7871,124.08,124.05,0.05432087]
[1766524350991,12.7871,124.08,124.05,0.00432087]
[1766524352301,5.53,124.08,124.05,0.00432087]
[1766524359707,4.9,124.07,124.05,0.00432087]
[1766524362806,4.9,124.06,124.01,3.14]
[1766524363807,0.060232,124.05,124.02,0.06010886]
[1766524366506,4.9,124.08,124.02,3.04010886]
[1766524366714,4.9,124.1,124.02,2.98]
[1766524367502,0.06177584,124.07,124.05,0.05207637]
[1766524368213,4.9,124.1,124.05,0.05207637]
[1766524369314,0.05746781,124.09,124.05,0.05207637]
[1766524369919,4.95746781,124.09,124.05,0.05207637]
[1766524372716,4.9,124.15,124.06,2.78]
[1766524372916,4.9,124.15,124.07,2.76]
[1766524373219,4.9,124.15,124.08,10.0168]
[1766524373410,4.9,124.17,124.09,2.76]
[1766524373617,4.9,124.17,124.12,0.05821121]
[1766524374722,0.06035644,124.16,124.12,0.05821121]
[1766524382832,4.9,124.17,124.12,0.05821121]
[1766524382833,7.2473,124.25,124.15,7.2525]
[1766524383022,4.54,124.24,124.16,2.45]
[1766524383431,4.54,124.23,124.14,2.45]
[1766524383627,4.54,124.21,124.14,2.45]
[1766524383833,4.59156977,124.19,124.11,97.63]
[1766524384032,2.27539027,124.2,124.11,97.63]
[1766524384033,4.54,124.17,124.11,97.63]
[1766524384829,0.05265758,124.15,124.13,0.06154425]
[1766524389744,4.54,124.17,124.13,0.06154425]
[1766524390741,0.05522966,124.16,124.13,0.06154425]
[1766524391044,6.81539027,124.21,124.14,2.29]
[1766524391444,4.54,124.2,124.14,2.29]
[1766524392047,4.54,124.2,124.16,0.06159444]
[1766524398651,6.81539027,124.22,124.16,7.31379444]
[1766524398954,4.54,124.21,124.16,0.06159444]
[1766524400654,4.54,124.19,124.12,7.2542]
[1766524400953,4.54,124.17,124.09,4.20113857]
[1766524401142,4.54,124.17,124.1,95.14]
[1766524401650,0.05816276,124.15,124.12,0.05339591]
[1766524403846,0.05816276,124.15,124.12,7.30779591]
[1766524404049,2.27539027,124.2,124.12,4.68339591]
[1766524404245,2.27539027,124.2,124.12,4.63]
[1766524404944,2.27539027,124.2,124.14,7.2533]
[1766524405151,2.27539027,124.2,124.15,0.06024414]
[1766524406152,4.54,124.19,124.15,0.06024414]
[1766524407050,4.54,124.19,124.15,0.00024414]
[1766524408253,0.05671503,124.18,124.15,0.00024414]
[1766524408957,4.59671503,124.18,124.15,0.00024414]
[1766524424261,0.05671503,124.18,124.15,0.00024414]
[1766524425762,4.08671503,124.18,124.15,0.00024414]
[1766524426966,0.05671503,124.18,124.15,0.00024414]
[1766524427170,4.03,124.2,124.15,0.00024414]
[1766524430775,12.7337696,124.2,124.15,0.00024414]
[1766524430973,4.03,124.19,124.15,0.00024414]
[1766524443486,12.8132696,124.21,124.15,4.09024414]
[1766524443695,4.11,124.21,124.15,14.06946427]
[1766524443991,4.11,124.21,124.15,4.09024414]
[1766524444696,4.11,124.21,124.15,11.34294414]
[1766524446696,4.11,124.21,124.16,4.09]
[1766524446990,14.4925,124.27,124.18,4.09]
[1766524446991,4.11,124.26,124.18,4.09]
[1766524447187,4.11,124.26,124.21,0.05421213]
[1766524448293,5.5637696,124.26,124.21,0.05421213]
[1766524448498,4.11,124.25,124.21,0.05421213]
[1766524448793,4.11,124.27,124.21,4.14421213]
[1766524451291,10.77171834,124.28,124.21,4.14421213]
[1766524451292,5.5637696,124.26,124.21,0.05421213]
[1766524451483,4.11,124.23,124.17,4.09]
[1766524452596,0.05175377,124.21,124.19,0.05411455]
[1766524460798,5.61552337,124.21,124.14,4.09]
[1766524460998,4.11,124.21,124.15,4.09]
[1766524461703,0.05475936,124.19,124.17,0.05774107]
[1766524463206,5.5637696,124.23,124.17,0.05774107]
[1766524464096,0.05816507,124.21,124.17,0.05774107]
[1766524465102,0.05816507,124.21,124.17,4.14774107]
[1766524469009,7.2487,124.23,124.17,4.14774107]
[1766524471313,4.11,124.24,124.17,4.14774107]
[1766524471507,5.5637696,124.24,124.17,4.14774107]
[1766524471706,4.0,124.23,124.17,4.14774107]
[1766524472211,4.0,124.21,124.17,0.05774107]
[1766524480212,7.2488,124.22,124.17,3.88774107]
[1766524480413,11.1888,124.22,124.17,3.88774107]
[1766524480616,11.1888,124.22,124.17,0.05774107]
[1766524480914,3.94,124.21,124.17,0.05774107]
[1766524484318,6.21033363,124.23,124.17,3.88774107]
[1766524484514,3.94,124.22,124.17,3.88774107]
[1766524489629,3.94,124.24,124.17,3.88774107]
[1766524489818,3.94,124.24,124.18,11.081]
[1766524490017,3.94,124.24,124.2,0.06092971]
[1766524494230,3.94,124.24,124.2,0.00092971]
[1766524495523,3.99384942,124.23,124.2,0.00092971]
[1766524500630,0.05384942,124.23,124.2,3.83092971]
[1766524501439,0.05384942,124.23,124.2,0.00092971]
[1766524502625,3.94,124.25,124.2,0.00092971]
[1766524502831,3.94,124.25,124.2,3.69092971]
[1766524503938,3.9,124.23,124.2,0.00092971]
[1766524504930,7.2478,124.24,124.2,0.00092971]
[1766524505135,3.9,124.25,124.2,0.00092971]
[1766524507732,3.9,124.27,124.2,3.69092971]
[1766524507937,3.9,124.27,124.22,0.05903947]
[1766524508533,3.9,124.26,124.22,0.05903947]
[1766524509234,3.9,124.26,124.18,3.69]
[1766524509438,3.9,124.25,124.18,3.69]
[1766524510336,3.95229696,124.23,124.2,0.05937124]
[1766524515242,3.95229696,124.23,124.17,7.2516]
[1766524515647,3.95229696,124.23,124.17,10.9416]
[1766524515846,3.95229696,124.23,124.18,3.69]
[1766524516047,3.95229696,124.23,124.17,7.2516]
[1766524516348,3.95229696,124.23,124.19,0.05675153]
[1766524529961,3.95229696,124.23,124.19,10.99725153]
[1766524529962,0.05229696,124.23,124.19,10.99725153]
[1766524539554,3.57229696,124.23,124.19,0.05675153]
[1766524565781,3.7,124.22,124.17,9.97922013]
[1766524565985,3.7,124.21,124.17,3.74]
[1766524566284,3.7,124.23,124.17,3.74]
[1766524566485,3.7,124.23,124.18,3.74]
[1766524566984,0.06047419,124.22,124.19,0.05143593]
[1766524570083,0.06047419,124.22,124.19,7.30193593]
[1766524570385,0.00047419,124.22,124.2,3.74]
[1766524571882,0.00047419,124.22,124.19,7.30193593]
[1766524572084,0.00047419,124.22,124.19,11.04193593]
[1766524573982,3.7,124.26,124.21,3.74]
[1766524575085,0.05860897,124.25,124.22,0.060646]
[1766524576889,0.05860897,124.25,124.22,3.800646]
[1766524577489,3.7,124.27,124.22,3.800646]
[1766524578489,0.05583906,124.26,124.22,3.800646]
[1766524578793,0.05583906,124.26,124.22,11.049346]
[1766524581397,0.05583906,124.26,124.22,3.800646]
[1766524581599,5.15234166,124.25,124.22,0.060646]
[1766524581990,3.7,124.24,124.18,10.9906]
[1766524582190,3.7,124.24,124.18,98.82]
[1766524583197,0.05785476,124.22,124.2,0.05389011]
[1766524584196,0.05785476,124.22,124.18,3.74]
[1766524585000,0.05785476,124.22,124.19,0.05675081]
[1766524595899,3.45,124.27,124.19,3.57675081]
[1766524596205,3.45,124.27,124.19,3.52]
[1766524596401,3.45,124.27,124.19,13.55080234]
[1766524596597,3.45,124.29,124.23,3.52]
[1766524596802,0.05190994,124.27,124.25,0.05815917]
[1766524598207,3.50190994,124.27,124.21,3.52]
[1766524598610,3.50190994,124.27,124.21,10.7693]
[1766524599213,3.50190994,124.27,124.23,0.061202]
[1766524607317,3.45,124.26,124.21,3.52]
[1766524608319,3.45,124.26,124.22,0.05568286]
[1766524612819,0.05190994,124.27,124.22,3.57568286]
[1766524614324,0.05190994,124.27,124.23,3.52]
[1766524614525,3.45,124.28,124.23,3.52]
[1766524615618,0.05156521,124.27,124.23,3.52]
[1766524615814,0.05156521,124.27,124.23,10.7682]
[1766524618524,0.05156521,124.27,124.24,10.7673]
[1766524621027,0.05156521,124.27,124.22,98.59568286]
[1766524621329,3.57156521,124.27,124.22,3.51568286]
[1766524631140,3.57156521,124.27,124.22,0.05568286]
[1766524653669,10.81746521,124.27,124.22,0.05568286]
[1766524653870,3.44,124.26,124.22,0.05568286]
[1766524661276,3.44,124.26,124.22,7.30448286]
[1766524662171,3.44,124.26,124.22,10.89448286]
[1766524668983,3.44,124.26,124.22,0.05568286]
[1766524669188,3.44,124.26,124.18,3.59]
[1766524669388,3.44,124.26,124.19,95.06]
[1766524669588,3.44,124.25,124.19,105.9005]
[1766524670085,0.05960741,124.23,124.21,0.05704556]
[1766524674185,3.44,124.22,124.17,3.59]
[1766524674388,3.44,124.22,124.13,154.6558524]
[1766524674389,3.44,124.22,124.16,91.49]
[1766524674587,3.44,124.18,124.11,98.67]
[1766524674787,3.44,124.18,124.12,7.2541]
[1766524675292,0.05199574,124.16,124.14,0.05809327]
[1766524680596,3.49199574,124.16,124.13,1.45169475]
[1766524681599,3.49199574,124.16,124.13,1.51105182]
[1766524684297,3.49199574,124.16,124.13,0.05935707]
[1766524684695,0.05199574,124.16,124.15,9.475e-05]
[1766524684898,7.2508,124.19,124.15,1.45169475]
[1766524685103,10.6808,124.19,124.15,1.45169475]
[1766524685790,0.05147667,124.18,124.16,0.05175862]
[1766524687287,3.48147667,124.18,124.16,0.00175862]
[1766524692995,0.05147667,124.18,124.16,0.00175862]
[1766524693197,112.7414,124.24,124.16,0.00175862]
[1766524693198,3.43,124.24,124.16,4.75345337]
[1766524693503,3.43,124.24,124.18,1.45169475]
[1766524694092,3.43,124.24,124.2,1.45169475]
[1766524694295,3.43,124.26,124.22,1.45169475]
[1766524695404,0.05969434,124.25,124.23,0.05415861]
[1766524710110,98.55,124.29,124.23,3.35415861]
[1766524711008,0.0573689,124.27,124.23,3.35415861]
[1766524711517,0.0573689,124.27,124.23,10.60235861]
[1766524713203,0.0573689,124.27,124.24,3.33]
[1766524714015,1.45169475,124.3,124.25,3.33]
[1766524714221,3.24,124.31,124.25,3.33]
[1766524714914,4.69169475,124.31,124.25,10.577]
[1766524715107,0.05609365,124.29,124.27,0.05121519]
[1766524715508,0.05609365,124.29,124.27,0.00121519]
[1766524715509,3.29609365,124.29,124.27,0.00121519]
[1766524716710,0.05609365,124.29,124.27,0.00121519]
[1766524722620,3.24,124.31,124.27,0.00121519]
[1766524722818,3.39,124.34,124.28,3.3]
[1766524723007,207.656,124.41,124.29,3.3]
[1766524723212,2.26714024,124.37,124.29,3.3]
[1766524723823,2.26714024,124.37,124.3,3.3]
[1766524724114,2.26714024,124.4,124.32,112.72482126]
[1766524724318,4.60269587,124.43,124.37,7.2399]
[1766524724711,4.60269587,124.43,124.37,3.3]
[1766524725119,2.26714024,124.4,124.31,112.6778]
[1766524725321,4.18714024,124.38,124.32,98.36]
[1766524725712,4.18714024,124.38,124.32,105.6028]
[1766524726113,4.18714024,124.38,124.3,112.6865]
[1766524726114,4.24168401,124.36,124.3,10.5439]
[1766524726416,4.24168401,124.36,124.3,105.5839]
[1766524727019,4.24168401,124.36,124.31,7.2434]
[1766524727215,0.05454377,124.36,124.32,0.05917278]
[1766524729228,0.05454377,124.36,124.32,7.30197278]
[1766524730125,0.05454377,124.36,124.32,10.60197278]
[1766524730421,6.46269587,124.43,124.36,3.3]
[1766524730721,4.60269587,124.43,124.37,3.3]
[1766524731124,4.60269587,124.43,124.38,7.2391]
[1766524731320,0.05616448,124.42,124.39,0.05207525]
[1766524731913,1.91616448,124.42,124.39,0.00207525]
[1766524733720,0.05616448,124.42,124.39,0.00207525]
[1766524735522,1.8,124.47,124.41,7.2375]
[1766524735719,1.86,124.46,124.37,3.3]
[1766524736023,1.86,124.46,124.38,95.0]
[1766524736422,0.0593749,124.43,124.41,0.05619122]
[1766524737320,1.86,124.46,124.41,0.05619122]
[1766524737521,1.86,124.46,124.39,7.2387]
[1766524738119,1.8,124.42,124.35,3.3]
[1766524738329,1.8,124.42,124.35,98.28]
[1766524738629,0.05837358,124.4,124.37,0.05874021]
[1766524744934,0.05837358,124.4,124.38,7.2394]
[1766524745830,1.79,124.45,124.38,7.2394]
[1766524746131,1.79,124.45,124.38,10.6194]
[1766524746833,0.0547332,124.43,124.4,0.05322746]
[1766524747531,1.79,124.45,124.4,0.05322746]
[1766524748523,1.79,124.45,124.4,7.29142746]
[1766524748729,1.79,124.45,124.4,0.05322746]
[1766524749630,1.79,124.45,124.41,7.2376]
[1766524749829,1.79,124.49,124.41,3.38]
[1766524750331,1.79,124.49,124.44,0.05604902]
[1766524751127,1.73,124.47,124.38,115.9908]
[1766524751340,1.73,124.46,124.39,102.1984]
[1766524752226,0.05688615,124.44,124.41,0.05629415]
[1766524753339,1.78688615,124.44,124.37,7.2396]
[1766524754333,1.78688615,124.44,124.39,0.05273858]
[1766524756334,9.02288615,124.44,124.39,0.00273858]
[1766524756639,1.62,124.43,124.39,0.00273858]
[1766524757337,1.62,124.41,124.33,98.34]
[1766524758337,0.0597394,124.38,124.36,0.05916359]
[1766524760852,3.94714024,124.43,124.36,3.43916359]
[1766524761154,1.68,124.43,124.36,3.38]
[1766524762059,3.94714024,124.45,124.38,3.43360366]
[1766524762348,1.68,124.45,124.38,3.43360366]
[1766524762747,1.68,124.45,124.39,7.2387]
[1766524763050,0.04933549,124.43,124.41,0.0548541]
[1766524765051,1.73,124.47,124.41,0.0548541]
[1766524767550,11.22984024,124.5,124.42,3.38]
[1766524767755,11.22984024,124.5,124.45,0.05301475]
[1766524767957,1.73,124.49,124.45,0.05301475]
[1766524769654,1.73,124.48,124.45,0.00301475]
[1766524769854,1.68,124.47,124.45,0.00301475]
[1766524771054,1.68,124.47,124.4,10.6179]
[1766524771258,1.68,124.45,124.38,10.4791]
[1766524771443,1.68,124.45,124.38,3.24]
[1766524771649,1.68,124.45,124.36,3.24]
[1766524771853,1.68,124.43,124.36,3.24]
[1766524772153,0.05301475,124.41,124.38,0.0575967]